[Event "Late-Titled-Tuesday-Blitz-October-17-2023"]
[Site "Chess.com"]
[Date "2023.10.17"]
[Round "3"]
[White "frederiksvane"]
[Black "gahryman"]
[Result "0-1"]
[WhiteElo "2878"]
[BlackElo "2678"]
[TimeControl "180+1"]
[EndTime "14:30:41 PDT"]
[Termination "gahryman won by checkmate"]

1. Nf3 {[%clk 0:03:00.9]} 1... Nf6 {[%clk 0:02:58.7]} 2. g3 {[%clk 0:03:01.4]}
2... d5 {[%clk 0:02:57.1]} 3. Bg2 {[%clk 0:03:01.9]} 3... c6 {[%clk 0:02:57.6]}
4. O-O {[%clk 0:03:02.3]} 4... Bg4 {[%clk 0:02:57.7]} 5. c4 {[%clk 0:03:03]}
5... e6 {[%clk 0:02:57]} 6. d4 {[%clk 0:03:03.1]} 6... Nbd7 {[%clk 0:02:56.8]}
7. Nc3 {[%clk 0:03:02.4]} 7... Be7 {[%clk 0:02:48.6]} 8. Ne5 {[%clk 0:03:02.8]}
8... Bf5 {[%clk 0:02:45.9]} 9. h3 {[%clk 0:02:51.3]} 9... h6 {[%clk 0:02:44.9]}
10. g4 {[%clk 0:02:44.7]} 10... Bh7 {[%clk 0:02:43.5]} 11. Bf4 {[%clk
0:02:40.1]} 11... O-O {[%clk 0:02:42.7]} 12. Qb3 {[%clk 0:02:40.1]} 12... Qb6
{[%clk 0:02:23]} 13. c5 {[%clk 0:02:36.4]} 13... Qa6 {[%clk 0:02:22.8]} 14. Rfe1
{[%clk 0:02:32.3]} 14... Nxe5 {[%clk 0:02:22.4]} 15. Bxe5 {[%clk 0:02:30.3]}
15... Nd7 {[%clk 0:02:22.9]} 16. Bg3 {[%clk 0:01:51.3]} 16... b6 {[%clk
0:02:22.6]} 17. cxb6 {[%clk 0:01:51.8]} 17... axb6 {[%clk 0:02:23.2]} 18. a3
{[%clk 0:01:48]} 18... b5 {[%clk 0:02:13.4]} 19. Rac1 {[%clk 0:01:44.9]} 19...
Nb6 {[%clk 0:02:12.1]} 20. Na2 {[%clk 0:01:42.7]} 20... Nc4 {[%clk 0:02:11]} 21.
Nb4 {[%clk 0:01:42.6]} 21... Qb6 {[%clk 0:02:11.1]} 22. e3 {[%clk 0:01:33.6]}
22... Rfc8 {[%clk 0:01:42.2]} 23. Rcd1 {[%clk 0:01:28]} 23... Bf6 {[%clk
0:01:42]} 24. Nd3 {[%clk 0:01:24.9]} 24... Bxd3 {[%clk 0:01:29.9]} 25. Rxd3
{[%clk 0:01:25.8]} 25... Rcb8 {[%clk 0:01:27.9]} 26. Bxb8 {[%clk 0:01:24.2]}
26... Rxb8 {[%clk 0:01:26.1]} 27. Qc2 {[%clk 0:01:20.8]} 27... b4 {[%clk
0:01:22]} 28. axb4 {[%clk 0:01:21.7]} 28... Qxb4 {[%clk 0:01:22.2]} 29. Rb1
{[%clk 0:01:12.9]} 29... c5 {[%clk 0:01:21.8]} 30. dxc5 {[%clk 0:01:11]} 30...
Rc8 {[%clk 0:01:16.2]} 31. Rc1 {[%clk 0:00:55.8]} 31... Be7 {[%clk 0:00:59.6]}
32. b3 {[%clk 0:00:51.1]} 32... Na3 {[%clk 0:00:48.8]} 33. Qb2 {[%clk
0:00:48.1]} 33... Nb5 {[%clk 0:00:45.2]} 34. c6 {[%clk 0:00:45.7]} 34... Bd6
{[%clk 0:00:42.9]} 35. Rdd1 {[%clk 0:00:38.8]} 35... Rc7 {[%clk 0:00:25.1]} 36.
Qa1 {[%clk 0:00:25.7]} 36... Ra7 {[%clk 0:00:23.2]} 37. Qb2 {[%clk 0:00:18.9]}
37... Rc7 {[%clk 0:00:23.4]} 38. Rc2 {[%clk 0:00:19]} 38... Na3 {[%clk 0:00:15]}
39. Rcd2 {[%clk 0:00:08.7]} 39... Rxc6 {[%clk 0:00:13.7]} 40. Rc1 {[%clk
0:00:06.1]} 40... Rxc1+ {[%clk 0:00:11.2]} 41. Qxc1 {[%clk 0:00:07]} 41... Qxb3
{[%clk 0:00:11.9]} 42. Qc8+ {[%clk 0:00:06.4]} 42... Kh7 {[%clk 0:00:11.6]} 43.
Qc1 {[%clk 0:00:06.8]} 43... Be5 {[%clk 0:00:10.9]} 44. Bf1 {[%clk 0:00:05]}
44... Nc4 {[%clk 0:00:10.6]} 45. Qc2+ {[%clk 0:00:04.3]} 45... Qxc2 {[%clk
0:00:09.8]} 46. Rxc2 {[%clk 0:00:05.2]} 46... Nd6 {[%clk 0:00:10.3]} 47. Bd3+
{[%clk 0:00:05.8]} 47... g6 {[%clk 0:00:09.7]} 48. Kg2 {[%clk 0:00:06.7]} 48...
Kg7 {[%clk 0:00:09.2]} 49. Rc6 {[%clk 0:00:07.4]} 49... Ne8 {[%clk 0:00:07.5]}
50. Ra6 {[%clk 0:00:07.8]} 50... g5 {[%clk 0:00:07.1]} 51. Ra7 {[%clk
0:00:08.1]} 51... Nd6 {[%clk 0:00:07.5]} 52. Rd7 {[%clk 0:00:08.5]} 52... Ne8
{[%clk 0:00:06]} 53. Kf3 {[%clk 0:00:08.4]} 53... Nf6 {[%clk 0:00:05.7]} 54. Ra7
{[%clk 0:00:08.3]} 54... Bc3 {[%clk 0:00:05.4]} 55. Ke2 {[%clk 0:00:08.2]} 55...
Be5 {[%clk 0:00:05]} 56. Ra4 {[%clk 0:00:07.7]} 56... Kf8 {[%clk 0:00:04.2]} 57.
Ra1 {[%clk 0:00:07.7]} 57... Bxa1 {[%clk 0:00:03.5]} 58. Kf3 {[%clk 0:00:08]}
58... Be5 {[%clk 0:00:03.8]} 59. Kg2 {[%clk 0:00:08.5]} 59... Ke7 {[%clk
0:00:04.4]} 60. Kf3 {[%clk 0:00:08.6]} 60... Bd6 {[%clk 0:00:05.3]} 61. Ke2
{[%clk 0:00:09.1]} 61... e5 {[%clk 0:00:06.2]} 62. Bf5 {[%clk 0:00:09.5]} 62...
e4 {[%clk 0:00:07.1]} 63. Kd2 {[%clk 0:00:09.2]} 63... Be5 {[%clk 0:00:07.7]}
64. Ke2 {[%clk 0:00:09.7]} 64... Kd6 {[%clk 0:00:08.4]} 65. Bc8 {[%clk 0:00:09]}
65... d4 {[%clk 0:00:08.6]} 66. exd4 {[%clk 0:00:09.9]} 66... Bxd4 {[%clk
0:00:09.5]} 67. Bb7 {[%clk 0:00:10.4]} 67... Ke5 {[%clk 0:00:10]} 68. f3 {[%clk
0:00:10.2]} 68... e3 {[%clk 0:00:09.5]} 69. Ba6 {[%clk 0:00:09.5]} 69... Nd5
{[%clk 0:00:10.1]} 70. Bc4 {[%clk 0:00:10.1]} 70... Nf4+ {[%clk 0:00:11]} 71.
Kf1 {[%clk 0:00:10.6]} 71... Bc3 {[%clk 0:00:09.9]} 72. h4 {[%clk 0:00:08.3]}
72... Kd4 {[%clk 0:00:09.9]} 73. Ba6 {[%clk 0:00:08.2]} 73... Bd2 {[%clk
0:00:08.7]} 74. h5 {[%clk 0:00:06.6]} 74... f6 {[%clk 0:00:08.9]} 75. Bb5 {[%clk
0:00:06.6]} 75... Bb4 {[%clk 0:00:09.4]} 76. Ba6 {[%clk 0:00:07.1]} 76... Kc3
{[%clk 0:00:09.8]} 77. Ke1 {[%clk 0:00:07.6]} 77... Kc2+ {[%clk 0:00:10.1]} 78.
Kf1 {[%clk 0:00:08.3]} 78... Kd2 {[%clk 0:00:10.7]} 79. Bb5 {[%clk 0:00:09.2]}
79... e2+ {[%clk 0:00:11]} 80. Bxe2 {[%clk 0:00:10.1]} 80... Nxe2 {[%clk
0:00:11.4]} 81. Kf2 {[%clk 0:00:11]} 81... Nf4 {[%clk 0:00:12]} 82. Kg3 {[%clk
0:00:11.9]} 82... Bc5 {[%clk 0:00:12.6]} 83. Kh2 {[%clk 0:00:12.2]} 83... Ke3
{[%clk 0:00:12.8]} 84. Kg3 {[%clk 0:00:13.1]} 84... Bb4 {[%clk 0:00:12.6]} 85.
Kh2 {[%clk 0:00:14]} 85... Be1 {[%clk 0:00:11.9]} 86. Kg1 {[%clk 0:00:13.1]}
86... Kxf3 {[%clk 0:00:12.1]} 87. Kf1 {[%clk 0:00:14]} 87... Kxg4 {[%clk
0:00:11.7]} 88. Kg1 {[%clk 0:00:14.9]} 88... Kxh5 {[%clk 0:00:11.9]} 89. Kf1
{[%clk 0:00:15.8]} 89... Kg4 {[%clk 0:00:12.4]} 90. Kg1 {[%clk 0:00:16.5]} 90...
h5 {[%clk 0:00:12.9]} 91. Kf1 {[%clk 0:00:17.4]} 91... Ba5 {[%clk 0:00:12.9]}
92. Kg1 {[%clk 0:00:18.3]} 92... h4 {[%clk 0:00:13.3]} 93. Kf1 {[%clk
0:00:19.2]} 93... Bb6 {[%clk 0:00:13.6]} 94. Ke1 {[%clk 0:00:19.3]} 94... h3
{[%clk 0:00:14.1]} 95. Kd1 {[%clk 0:00:20.2]} 95... h2 {[%clk 0:00:14.8]} 96.
Kd2 {[%clk 0:00:21.1]} 96... h1=Q {[%clk 0:00:14.6]} 97. Kc3 {[%clk 0:00:22]}
97... Qf3+ {[%clk 0:00:14.9]} 98. Kc4 {[%clk 0:00:22.9]} 98... Qd5+ {[%clk
0:00:14.6]} 99. Kc3 {[%clk 0:00:23.4]} 99... Ba5+ {[%clk 0:00:15.2]} 100. Kc2
{[%clk 0:00:23.4]} 100... Qa2+ {[%clk 0:00:15.3]} 101. Kd1 {[%clk 0:00:23.4]}
101... Qe2+ {[%clk 0:00:15.3]} 102. Kc1 {[%clk 0:00:23.9]} 102... Nd3+ {[%clk
0:00:16]} 103. Kb1 {[%clk 0:00:24.8]} 103... Qb2# {[%clk 0:00:16.5]} 0-1

[Event "Late-Titled-Tuesday-Blitz-October-17-2023"]
[Site "Chess.com"]
[Date "2023.10.17"]
[Round "4"]
[White "HanSchut"]
[Black "Bala-Afiada"]
[Result "1-0"]
[WhiteElo "2312"]
[BlackElo "1902"]
[TimeControl "180+1"]
[EndTime "14:34:02 PDT"]
[Termination "HanSchut won by resignation"]

1. e4 {[%clk 0:02:59.3]} 1... c5 {[%clk 0:02:55.2]} 2. Nf3 {[%clk 0:02:58.9]}
2... Nc6 {[%clk 0:02:54.4]} 3. d4 {[%clk 0:02:59.1]} 3... cxd4 {[%clk
0:02:55.3]} 4. Nxd4 {[%clk 0:02:59.2]} 4... Nf6 {[%clk 0:02:54.6]} 5. Nc3 {[%clk
0:02:59.5]} 5... d6 {[%clk 0:02:54.6]} 6. Bg5 {[%clk 0:02:58.8]} 6... e6 {[%clk
0:02:42.9]} 7. Qd2 {[%clk 0:02:56.2]} 7... Nxd4 {[%clk 0:02:38.2]} 8. Qxd4
{[%clk 0:02:55.7]} 8... Be7 {[%clk 0:02:39]} 9. O-O-O {[%clk 0:02:53.1]} 9...
O-O {[%clk 0:02:31.2]} 10. Kb1 {[%clk 0:02:42.9]} 10... Qa5 {[%clk 0:02:29.5]}
11. f4 {[%clk 0:02:30.5]} 11... e5 {[%clk 0:02:09.3]} 12. Qd2 {[%clk 0:02:14.8]}
12... exf4 {[%clk 0:01:56.6]} 13. Nd5 {[%clk 0:02:14.4]} 13... Nxd5 {[%clk
0:01:55]} 14. Qxa5 {[%clk 0:02:13.7]} 1-0

[Event "Late-Titled-Tuesday-Blitz-October-17-2023"]
[Site "Chess.com"]
[Date "2023.10.17"]
[Round "4"]
[White "Dacean99"]
[Black "shanemelaughcm"]
[Result "1-0"]
[WhiteElo "2628"]
[BlackElo "2351"]
[TimeControl "180+1"]
[EndTime "14:35:14 PDT"]
[Termination "Dacean99 won by resignation"]

1. e4 {[%clk 0:03:00.9]} 1... e6 {[%clk 0:02:59.5]} 2. d4 {[%clk 0:02:59.9]}
2... d5 {[%clk 0:02:59.9]} 3. Bd3 {[%clk 0:03:00.1]} 3... dxe4 {[%clk
0:03:00.2]} 4. Bxe4 {[%clk 0:03:01]} 4... Nf6 {[%clk 0:03:01.1]} 5. Bf3 {[%clk
0:03:01.5]} 5... c5 {[%clk 0:03:02]} 6. Ne2 {[%clk 0:03:02]} 6... Nc6 {[%clk
0:02:59.5]} 7. Be3 {[%clk 0:03:00.1]} 7... Bd6 {[%clk 0:02:58.6]} 8. dxc5 {[%clk
0:02:59.2]} 8... Qa5+ {[%clk 0:02:42]} 9. c3 {[%clk 0:02:54.8]} 9... Be7 {[%clk
0:02:33.8]} 10. b4 {[%clk 0:02:52.8]} 10... Qa6 {[%clk 0:02:27.7]} 11. a4 {[%clk
0:02:47.3]} 11... Qc4 {[%clk 0:02:28.2]} 12. Nd2 {[%clk 0:02:46.2]} 12... Qh4
{[%clk 0:02:27.1]} 13. Bxc6+ {[%clk 0:02:41.3]} 13... bxc6 {[%clk 0:02:27.3]}
14. Nf3 {[%clk 0:02:41.9]} 14... Qc4 {[%clk 0:02:25.3]} 15. Ne5 {[%clk
0:02:33.5]} 15... Qe4 {[%clk 0:02:23.2]} 16. Qd4 {[%clk 0:02:24.5]} 16... Qxg2
{[%clk 0:02:22.8]} 17. Rg1 {[%clk 0:02:24]} 17... Qxh2 {[%clk 0:02:18.9]} 18.
Nxc6 {[%clk 0:02:17.4]} 18... Qc7 {[%clk 0:02:04.3]} 19. Nxe7 {[%clk 0:02:16.9]}
19... Qxe7 {[%clk 0:02:05.2]} 20. Rxg7 {[%clk 0:02:15.1]} 20... Bb7 {[%clk
0:02:02.2]} 21. Bg5 {[%clk 0:02:13.7]} 21... e5 {[%clk 0:01:39.8]} 22. Qh4
{[%clk 0:02:12.4]} 22... Qe6 {[%clk 0:01:36.4]} 23. Bxf6 {[%clk 0:02:11.3]}
23... Bf3 {[%clk 0:01:27.7]} 24. Rg3 {[%clk 0:02:08.7]} 24... e4 {[%clk
0:01:28.3]} 25. Bxh8 {[%clk 0:02:06.8]} 25... Qc4 {[%clk 0:01:28.2]} 26. Rxf3
{[%clk 0:02:05.7]} 1-0

[Event "Late-Titled-Tuesday-Blitz-October-17-2023"]
[Site "Chess.com"]
[Date "2023.10.17"]
[Round "4"]
[White "DanielDardha2005"]
[Black "ljm509"]
[Result "1-0"]
[WhiteElo "2898"]
[BlackElo "2292"]
[TimeControl "180+1"]
[EndTime "14:35:19 PDT"]
[Termination "DanielDardha2005 won by resignation"]

1. d4 {[%clk 0:03:00.1]} 1... Nf6 {[%clk 0:02:58.8]} 2. Bf4 {[%clk 0:03:00.3]}
2... d5 {[%clk 0:02:56.2]} 3. e3 {[%clk 0:03:00.2]} 3... Bf5 {[%clk 0:02:54.7]}
4. c4 {[%clk 0:02:57.6]} 4... e6 {[%clk 0:02:54.4]} 5. Nc3 {[%clk 0:02:56.8]}
5... c6 {[%clk 0:02:53]} 6. Qb3 {[%clk 0:02:56.1]} 6... Qb6 {[%clk 0:02:38.4]}
7. c5 {[%clk 0:02:56.2]} 7... Qxb3 {[%clk 0:02:38.4]} 8. axb3 {[%clk 0:02:57.1]}
8... Nbd7 {[%clk 0:02:32.1]} 9. b4 {[%clk 0:02:56.6]} 9... Ne4 {[%clk
0:02:23.5]} 10. Nf3 {[%clk 0:02:51.8]} 10... Be7 {[%clk 0:02:19.3]} 11. b5
{[%clk 0:02:48.3]} 11... Nxc3 {[%clk 0:02:17.3]} 12. bxc3 {[%clk 0:02:49.2]}
12... O-O {[%clk 0:02:17]} 13. bxc6 {[%clk 0:02:48.8]} 13... bxc6 {[%clk
0:02:17.1]} 14. Ba6 {[%clk 0:02:49.3]} 14... Be4 {[%clk 0:02:04.2]} 15. O-O
{[%clk 0:02:47.3]} 15... Bxf3 {[%clk 0:02:00.7]} 16. gxf3 {[%clk 0:02:48.2]}
16... e5 {[%clk 0:02:01.3]} 17. Bg3 {[%clk 0:02:42.9]} 17... f5 {[%clk 0:01:42]}
18. f4 {[%clk 0:02:36.6]} 18... e4 {[%clk 0:01:39.2]} 19. Bb7 {[%clk 0:02:35.4]}
19... Rfc8 {[%clk 0:01:36.5]} 20. Ra6 {[%clk 0:02:32.7]} 20... Rc7 {[%clk
0:01:27.4]} 21. Bxa8 {[%clk 0:02:31.6]} 21... Nb8 {[%clk 0:01:26.1]} 22. Ra2
{[%clk 0:02:29.7]} 1-0

[Event "Late-Titled-Tuesday-Blitz-October-17-2023"]
[Site "Chess.com"]
[Date "2023.10.17"]
[Round "4"]
[White "olawsson"]
[Black "micke12a"]
[Result "0-1"]
[WhiteElo "2089"]
[BlackElo "2364"]
[TimeControl "180+1"]
[EndTime "14:36:19 PDT"]
[Termination "micke12a won by resignation"]

1. d4 {[%clk 0:03:00.9]} 1... Nf6 {[%clk 0:02:56.2]} 2. c4 {[%clk 0:02:59.6]}
2... c6 {[%clk 0:02:55.7]} 3. Nc3 {[%clk 0:02:57.2]} 3... d5 {[%clk 0:02:55.9]}
4. cxd5 {[%clk 0:02:56.4]} 4... cxd5 {[%clk 0:02:55.8]} 5. Nf3 {[%clk 0:02:57]}
5... Nc6 {[%clk 0:02:55.2]} 6. Bf4 {[%clk 0:02:57.4]} 6... a6 {[%clk 0:02:55.3]}
7. e3 {[%clk 0:02:56.6]} 7... Bf5 {[%clk 0:02:53.9]} 8. Ne5 {[%clk 0:02:55.6]}
8... Rc8 {[%clk 0:02:48.6]} 9. Qa4 {[%clk 0:02:46.3]} 9... Qb6 {[%clk 0:02:36]}
10. Nxc6 {[%clk 0:02:08.9]} 10... Rxc6 {[%clk 0:02:32.8]} 11. Qb3 {[%clk
0:01:57.6]} 11... Qxb3 {[%clk 0:02:31.5]} 12. axb3 {[%clk 0:01:56.7]} 12... e6
{[%clk 0:02:32.1]} 13. f3 {[%clk 0:01:54.7]} 13... Bb4 {[%clk 0:02:30.4]} 14.
Bb5 {[%clk 0:01:48.4]} 14... axb5 {[%clk 0:02:05.8]} 15. Ra8+ {[%clk 0:01:42.6]}
15... Kd7 {[%clk 0:02:01.3]} 16. Rxh8 {[%clk 0:01:42.3]} 16... Bxc3+ {[%clk
0:02:00.7]} 17. bxc3 {[%clk 0:01:40.7]} 17... Rxc3 {[%clk 0:02:01.3]} 18. O-O
{[%clk 0:01:26.6]} 18... Nh5 {[%clk 0:01:39.1]} 19. Bb8 {[%clk 0:01:06.1]} 19...
Bd3 {[%clk 0:01:32.7]} 20. Rd1 {[%clk 0:00:43.6]} 20... Rxb3 {[%clk 0:01:27.7]}
21. Rxh7 {[%clk 0:00:43.8]} 21... Bxh7 {[%clk 0:01:25.6]} 0-1

[Event "Late-Titled-Tuesday-Blitz-October-17-2023"]
[Site "Chess.com"]
[Date "2023.10.17"]
[Round "4"]
[White "Estrategia_vs_Tactica"]
[Black "leoduarte"]
[Result "0-1"]
[WhiteElo "2239"]
[BlackElo "2403"]
[TimeControl "180+1"]
[EndTime "14:36:30 PDT"]
[Termination "leoduarte won by resignation"]

1. e4 {[%clk 0:02:59.3]} 1... c5 {[%clk 0:02:58.6]} 2. Nf3 {[%clk 0:02:58.6]}
2... e6 {[%clk 0:02:58.7]} 3. d4 {[%clk 0:02:58.5]} 3... cxd4 {[%clk 0:02:59.6]}
4. Nxd4 {[%clk 0:02:58.8]} 4... Nf6 {[%clk 0:02:58]} 5. Nc3 {[%clk 0:02:58.7]}
5... Nc6 {[%clk 0:02:58.7]} 6. Nxc6 {[%clk 0:02:58.5]} 6... bxc6 {[%clk
0:02:58.5]} 7. Bd3 {[%clk 0:02:59.1]} 7... d5 {[%clk 0:02:57.8]} 8. e5 {[%clk
0:02:59.6]} 8... Nd7 {[%clk 0:02:56.7]} 9. Qe2 {[%clk 0:02:59.7]} 9... d4 {[%clk
0:02:50.6]} 10. Nd1 {[%clk 0:02:56.5]} 10... Qa5+ {[%clk 0:02:48.3]} 11. Bd2
{[%clk 0:02:51.1]} 11... Qxe5 {[%clk 0:02:48.9]} 12. O-O {[%clk 0:02:50]} 12...
Qxe2 {[%clk 0:02:46.2]} 13. Bxe2 {[%clk 0:02:50.9]} 13... Rb8 {[%clk 0:02:46.5]}
14. Rb1 {[%clk 0:02:48.7]} 14... c5 {[%clk 0:02:45.2]} 15. c3 {[%clk 0:02:44.4]}
15... e5 {[%clk 0:02:42.9]} 16. f4 {[%clk 0:02:39.2]} 16... e4 {[%clk 0:02:38]}
17. f5 {[%clk 0:02:37.3]} 17... Bd6 {[%clk 0:02:33.9]} 18. Bf4 {[%clk
0:02:33.6]} 18... Ne5 {[%clk 0:02:25.2]} 19. Nf2 {[%clk 0:02:32.1]} 19... Bxf5
{[%clk 0:02:22.5]} 20. g4 {[%clk 0:02:10.9]} 20... Bg6 {[%clk 0:02:11.5]} 21.
cxd4 {[%clk 0:02:04.5]} 21... cxd4 {[%clk 0:02:10]} 22. Rbc1 {[%clk 0:02:01.4]}
22... O-O {[%clk 0:02:06.6]} 23. b3 {[%clk 0:01:52.9]} 23... Nf3+ {[%clk
0:02:03]} 24. Bxf3 {[%clk 0:01:53.2]} 24... Bxf4 {[%clk 0:02:03.5]} 25. Bxe4
{[%clk 0:01:53.7]} 25... Bxc1 {[%clk 0:02:02.3]} 26. Rxc1 {[%clk 0:01:54.6]}
26... Bxe4 {[%clk 0:01:56.5]} 27. Nxe4 {[%clk 0:01:55.5]} 27... Rfc8 {[%clk
0:01:56.6]} 28. Rd1 {[%clk 0:01:55.4]} 28... Rd8 {[%clk 0:01:51.3]} 29. Rd3
{[%clk 0:01:54.6]} 29... Rbc8 {[%clk 0:01:51.4]} 30. a4 {[%clk 0:01:50.3]} 30...
g6 {[%clk 0:01:46.4]} 31. Kg2 {[%clk 0:01:50.1]} 31... f5 {[%clk 0:01:44.7]} 32.
gxf5 {[%clk 0:01:49.7]} 32... gxf5 {[%clk 0:01:45.6]} 33. Ng3 {[%clk 0:01:49.2]}
33... Rc3 {[%clk 0:01:44.4]} 34. Rd2 {[%clk 0:01:47.4]} 34... d3 {[%clk
0:01:39.2]} 35. Kf2 {[%clk 0:01:42.1]} 35... Rc2 {[%clk 0:01:32.2]} 36. Ke1
{[%clk 0:01:42.2]} 36... Rc1+ {[%clk 0:01:12.8]} 37. Kf2 {[%clk 0:01:42]} 37...
Rc3 {[%clk 0:01:07.9]} 38. b4 {[%clk 0:01:38.3]} 38... Rc4 {[%clk 0:01:06.4]}
39. Ke3 {[%clk 0:01:33.9]} 39... f4+ {[%clk 0:01:03.7]} 0-1

[Event "Late-Titled-Tuesday-Blitz-October-17-2023"]
[Site "Chess.com"]
[Date "2023.10.17"]
[Round "4"]
[White "oskariot"]
[Black "SereneSalmon"]
[Result "0-1"]
[WhiteElo "2652"]
[BlackElo "2448"]
[TimeControl "180+1"]
[EndTime "14:37:09 PDT"]
[Termination "SereneSalmon won on time"]

1. e4 {[%clk 0:02:20.4]} 1... e6 {[%clk 0:02:58.5]} 2. d4 {[%clk 0:02:14.8]}
2... d5 {[%clk 0:02:58.6]} 3. e5 {[%clk 0:02:15.7]} 3... c5 {[%clk 0:02:58.9]}
4. c3 {[%clk 0:02:16.6]} 4... Nc6 {[%clk 0:02:59.6]} 5. Nf3 {[%clk 0:02:16.9]}
5... Bd7 {[%clk 0:03:00.2]} 6. Bd3 {[%clk 0:02:16.5]} 6... cxd4 {[%clk
0:03:00.3]} 7. cxd4 {[%clk 0:02:15.9]} 7... Qb6 {[%clk 0:03:00.3]} 8. Bc2 {[%clk
0:02:08.1]} 8... Nb4 {[%clk 0:03:00]} 9. Ba4 {[%clk 0:01:44.6]} 9... Qa6 {[%clk
0:02:28.9]} 10. Bxd7+ {[%clk 0:01:41.2]} 10... Kxd7 {[%clk 0:02:29.8]} 11. Qd2
{[%clk 0:00:30.4]} 11... Nd3+ {[%clk 0:02:13.5]} 12. Kd1 {[%clk 0:00:30.3]}
12... Rc8 {[%clk 0:01:58.5]} 13. Nc3 {[%clk 0:00:29]} 13... Bb4 {[%clk
0:01:56.4]} 14. Ne1 {[%clk 0:00:20.5]} 14... Nxe1 {[%clk 0:01:28.2]} 15. Rxe1
{[%clk 0:00:21.4]} 15... Ne7 {[%clk 0:01:28.3]} 16. Qc2 {[%clk 0:00:13.6]} 16...
Nf5 {[%clk 0:01:24.3]} 17. Be3 {[%clk 0:00:13.6]} 17... Qc4 {[%clk 0:01:15.3]}
18. Qa4+ {[%clk 0:00:08.5]} 18... Ke7 {[%clk 0:01:04.9]} 0-1

[Event "Late-Titled-Tuesday-Blitz-October-17-2023"]
[Site "Chess.com"]
[Date "2023.10.17"]
[Round "4"]
[White "angryspacevoid"]
[Black "nitpicker"]
[Result "1-0"]
[WhiteElo "2467"]
[BlackElo "2240"]
[TimeControl "180+1"]
[EndTime "14:37:11 PDT"]
[Termination "angryspacevoid won by resignation"]

1. d4 {[%clk 0:03:00.9]} 1... Nf6 {[%clk 0:02:59.4]} 2. Bf4 {[%clk 0:02:57]}
2... b6 {[%clk 0:02:58]} 3. Nc3 {[%clk 0:02:56]} 3... Bb7 {[%clk 0:02:54.8]} 4.
e3 {[%clk 0:02:55.3]} 4... g6 {[%clk 0:02:47.8]} 5. h4 {[%clk 0:02:53.1]} 5...
h6 {[%clk 0:02:43.8]} 6. Nf3 {[%clk 0:02:51.7]} 6... Bg7 {[%clk 0:02:43.6]} 7.
Bd3 {[%clk 0:02:48.8]} 7... d6 {[%clk 0:02:41.7]} 8. e4 {[%clk 0:02:46]} 8...
Nbd7 {[%clk 0:02:36.7]} 9. e5 {[%clk 0:02:40.8]} 9... Nh5 {[%clk 0:02:28.2]} 10.
Bh2 {[%clk 0:02:37.9]} 10... Bxf3 {[%clk 0:02:28]} 11. Qxf3 {[%clk 0:02:36.4]}
11... dxe5 {[%clk 0:02:28.1]} 12. O-O-O {[%clk 0:02:31.5]} 12... exd4 {[%clk
0:02:01.8]} 13. Nd5 {[%clk 0:02:26.2]} 13... Rc8 {[%clk 0:01:41.4]} 14. Rhe1
{[%clk 0:02:19.3]} 14... e6 {[%clk 0:01:30.9]} 15. Bxg6 {[%clk 0:02:01.3]} 15...
Nhf6 {[%clk 0:01:18.1]} 16. Rxe6+ {[%clk 0:01:53]} 16... Kf8 {[%clk 0:01:12.9]}
17. Nf4 {[%clk 0:01:51.5]} 17... fxg6 {[%clk 0:00:59.9]} 18. Nxg6+ {[%clk
0:01:43.4]} 18... Kf7 {[%clk 0:01:00]} 19. Re7+ {[%clk 0:01:34]} 19... Qxe7
{[%clk 0:00:48.4]} 20. Nxe7 {[%clk 0:01:32]} 20... Kxe7 {[%clk 0:00:49.3]} 21.
g4 {[%clk 0:01:30.2]} 21... c5 {[%clk 0:00:38.3]} 22. Re1+ {[%clk 0:01:26.2]}
22... Kd8 {[%clk 0:00:35.5]} 23. Bd6 {[%clk 0:01:24.4]} 23... Re8 {[%clk
0:00:28.3]} 24. Rxe8+ {[%clk 0:01:22.7]} 24... Nxe8 {[%clk 0:00:25.1]} 25. Bg3
{[%clk 0:01:22.4]} 25... Ke7 {[%clk 0:00:17.1]} 26. g5 {[%clk 0:01:21.9]} 26...
hxg5 {[%clk 0:00:16.5]} 27. hxg5 {[%clk 0:01:22.8]} 27... Nd6 {[%clk 0:00:14.1]}
28. Qe2+ {[%clk 0:01:23.1]} 28... Kf7 {[%clk 0:00:10]} 29. Bxd6 {[%clk
0:01:23.4]} 29... c4 {[%clk 0:00:08.8]} 30. Qe7+ {[%clk 0:01:19.3]} 1-0

[Event "Late-Titled-Tuesday-Blitz-October-17-2023"]
[Site "Chess.com"]
[Date "2023.10.17"]
[Round "4"]
[White "Flaccidmoves"]
[Black "wadsy27"]
[Result "0-1"]
[WhiteElo "2420"]
[BlackElo "2661"]
[TimeControl "180+1"]
[EndTime "14:37:12 PDT"]
[Termination "wadsy27 won by resignation"]

1. d4 {[%clk 0:02:44.1]} 1... Nf6 {[%clk 0:02:51.3]} 2. Bg5 {[%clk 0:02:42.8]}
2... c5 {[%clk 0:02:51.5]} 3. d5 {[%clk 0:02:41]} 3... Ne4 {[%clk 0:02:48.4]} 4.
Bf4 {[%clk 0:02:39.6]} 4... e6 {[%clk 0:02:46.2]} 5. Nf3 {[%clk 0:02:13.8]} 5...
Qa5+ {[%clk 0:02:27]} 6. Nbd2 {[%clk 0:02:11.5]} 6... exd5 {[%clk 0:02:23.6]} 7.
c3 {[%clk 0:01:59.5]} 7... Nf6 {[%clk 0:02:17.5]} 8. e3 {[%clk 0:01:50.2]} 8...
Nc6 {[%clk 0:02:11]} 9. Bd3 {[%clk 0:01:49.5]} 9... d6 {[%clk 0:02:07.2]} 10.
O-O {[%clk 0:01:48.7]} 10... h6 {[%clk 0:02:06.8]} 11. e4 {[%clk 0:01:48.5]}
11... dxe4 {[%clk 0:02:04.1]} 12. Nxe4 {[%clk 0:01:48.1]} 12... Nxe4 {[%clk
0:02:03]} 13. Bxe4 {[%clk 0:01:49]} 13... Be6 {[%clk 0:02:02.8]} 14. Bd5 {[%clk
0:01:45]} 14... O-O-O {[%clk 0:01:56.2]} 15. Re1 {[%clk 0:01:43.9]} 15... g5
{[%clk 0:01:37.1]} 16. Bg3 {[%clk 0:01:36.5]} 16... Bxd5 {[%clk 0:00:43.2]} 17.
Qxd5 {[%clk 0:01:37.4]} 17... Qc7 {[%clk 0:00:43.2]} 18. Rad1 {[%clk 0:01:35.4]}
18... Be7 {[%clk 0:00:23.6]} 19. Qxf7 {[%clk 0:01:25]} 19... h5 {[%clk
0:00:21.3]} 20. h4 {[%clk 0:00:57.6]} 20... gxh4 {[%clk 0:00:20.2]} 21. Nxh4
{[%clk 0:00:51.1]} 21... Bxh4 {[%clk 0:00:20.2]} 22. Bxh4 {[%clk 0:00:52]} 22...
Qxf7 {[%clk 0:00:19.8]} 0-1